[Event "Titled Tuesday Blitz June 13 Late 2023"]
[White "Hartikainen, Jarmo"]
[Black "Kielinkei"]
[WhiteFideId "503134"]
[WhiteElo "2131"]
[BlackElo "2452"]
[Result "0-1"]
[Round "6"]
[TimeControl "180+2"]
[Date "2023.06.13"]
[WhiteClock "0:00:30"]
[BlackClock "0:00:53"]
[Board "130"]

1. e4 {[%clk 0:03:00]}  c5 {[%clk 0:02:59]} 2. c3 {[%clk 0:03:00]}  Nf6 {[%clk 0:02:57]} 3. e5 {[%clk 0:03:00]}  Nd5 {[%clk 0:02:58]} 4. d4 {[%clk 0:02:58]}  cxd4 {[%clk 0:02:59]} 5. Nf3 {[%clk 0:02:58]}  d6 {[%clk 0:02:57]} 6. cxd4 {[%clk 0:02:54]}  Nc6 {[%clk 0:02:57]} 7. Nc3 {[%clk 0:02:52]}  dxe5 {[%clk 0:02:53]} 8. dxe5 {[%clk 0:02:50]}  Be6 {[%clk 0:02:48]} 9. Bb5 {[%clk 0:02:13]}  Nxc3 {[%clk 0:02:33]} 10. Qxd8+ {[%clk 0:02:10]}  Rxd8 {[%clk 0:02:34]} 11. bxc3 {[%clk 0:02:09]}  a6 {[%clk 0:02:33]} 12. Bxc6+ {[%clk 0:02:08]}  bxc6 {[%clk 0:02:34]} 13. O-O {[%clk 0:02:02]}  Bd5 {[%clk 0:02:28]} 14. Be3 {[%clk 0:01:45]}  e6 {[%clk 0:02:22]} 15. Nd4 {[%clk 0:01:22]}  Be7 {[%clk 0:02:12]} 16. Rfb1 {[%clk 0:01:12]}  O-O {[%clk 0:01:34]} 17. Rb6 {[%clk 0:01:07]}  c5 {[%clk 0:01:18]} 18. Nb3 {[%clk 0:01:03]}  Rc8 {[%clk 0:01:04]} 19. Rxa6 {[%clk 0:00:56]}  f6 {[%clk 0:01:02]} 20. exf6 {[%clk 0:00:50]}  gxf6 {[%clk 0:00:56]} 21. c4 {[%clk 0:00:34]}  Bxc4 {[%clk 0:00:53]} 22. Rc1 {[%clk 0:00:30]}  Bxa6 {[%clk 0:00:53]} 0-1


[Site "https://www.chess.com"]

[Event "Titled Tuesday Blitz June 13 Late 2023"]
[White "zano2023"]
[Black "Arnold, Ken"]
[BlackFideId "2056836"]
[WhiteElo "2105"]
[BlackElo "2451"]
[Result "0-1"]
[Round "6"]
[TimeControl "180+2"]
[Date "2023.06.13"]
[WhiteClock "0:01:06"]
[BlackClock "0:01:37"]
[Board "131"]

1. d4 {[%clk 0:03:00]}  Nf6 {[%clk 0:02:59]} 2. Nd2 {[%clk 0:02:57]}  g6 {[%clk 0:02:59]} 3. e4 {[%clk 0:02:58]}  d6 {[%clk 0:02:59]} 4. Ngf3 {[%clk 0:02:58]}  Bg7 {[%clk 0:02:59]} 5. Bd3 {[%clk 0:02:59]}  O-O {[%clk 0:02:59]} 6. O-O {[%clk 0:02:59]}  Nc6 {[%clk 0:02:59]} 7. c3 {[%clk 0:02:59]}  e5 {[%clk 0:02:59]} 8. Re1 {[%clk 0:02:59]}  Bg4 {[%clk 0:02:58]} 9. h3 {[%clk 0:02:58]}  Bxf3 {[%clk 0:02:58]} 10. Nxf3 {[%clk 0:02:59]}  exd4 {[%clk 0:02:58]} 11. cxd4 {[%clk 0:02:59]}  Nd7 {[%clk 0:02:57]} 12. Be3 {[%clk 0:02:58]}  Qe7 {[%clk 0:02:54]} 13. Qd2 {[%clk 0:02:58]}  Rae8 {[%clk 0:02:53]} 14. a3 {[%clk 0:02:48]}  Nb6 {[%clk 0:02:52]} 15. b4 {[%clk 0:02:43]}  a6 {[%clk 0:02:51]} 16. Rac1 {[%clk 0:02:43]}  Na7 {[%clk 0:02:44]} 17. Bh6 {[%clk 0:02:41]}  Nb5 {[%clk 0:02:42]} 18. Bxg7 {[%clk 0:02:37]}  Kxg7 {[%clk 0:02:41]} 19. Qb2 {[%clk 0:02:26]}  d5 {[%clk 0:02:32]} 20. e5 {[%clk 0:02:25]}  Qd7 {[%clk 0:02:26]} 21. Qb3 {[%clk 0:02:24]}  c6 {[%clk 0:02:20]} 22. a4 {[%clk 0:02:22]}  Nc7 {[%clk 0:02:20]} 23. Rc2 {[%clk 0:02:10]}  Ne6 {[%clk 0:02:16]} 24. a5 {[%clk 0:02:08]}  Nc4 {[%clk 0:02:14]} 25. Bxc4 {[%clk 0:02:07]}  dxc4 {[%clk 0:02:14]} 26. Qxc4 {[%clk 0:02:07]}  Rd8 {[%clk 0:02:14]} 27. Re4 {[%clk 0:02:05]}  Qd5 {[%clk 0:02:11]} 28. Qxd5 {[%clk 0:01:58]}  Rxd5 {[%clk 0:02:08]} 29. g4 {[%clk 0:01:38]}  Rfd8 {[%clk 0:02:06]} 30. Rc4 {[%clk 0:01:37]}  Nc7 {[%clk 0:01:49]} 31. Ng5 {[%clk 0:01:16]}  h6 {[%clk 0:01:47]} 32. Nf3 {[%clk 0:01:16]}  Rb5 {[%clk 0:01:46]} 33. Rc5 {[%clk 0:01:12]}  Rxb4 {[%clk 0:01:40]} 34. g5 {[%clk 0:01:11]}  h5 {[%clk 0:01:38]} 35. Rf4 {[%clk 0:01:06]}  Ne6 {[%clk 0:01:37]} 0-1


[Site "https://www.chess.com"]

[Event "Titled Tuesday Blitz June 13 Late 2023"]
[White "Bueno, Alfeu Junior Varela"]
[Black "Sanchez, Robert"]
[WhiteFideId "2108879"]
[BlackFideId "2034360"]
[WhiteElo "2175"]
[BlackElo "1976"]
[Result "1-0"]
[Round "6"]
[TimeControl "180+2"]
[Date "2023.06.13"]
[WhiteClock "0:00:30"]
[BlackClock "0:00:01"]
[Board "134"]

1. e4 {[%clk 0:03:00]}  e6 {[%clk 0:02:59]} 2. d4 {[%clk 0:03:00]}  d5 {[%clk 0:02:59]} 3. Nd2 {[%clk 0:03:01]}  Nf6 {[%clk 0:03:00]} 4. Bd3 {[%clk 0:03:00]}  c5 {[%clk 0:02:58]} 5. e5 {[%clk 0:02:59]}  Nfd7 {[%clk 0:02:58]} 6. c3 {[%clk 0:03:00]}  Nc6 {[%clk 0:02:58]} 7. Ne2 {[%clk 0:03:00]}  cxd4 {[%clk 0:02:58]} 8. cxd4 {[%clk 0:03:01]}  f6 {[%clk 0:02:59]} 9. exf6 {[%clk 0:03:00]}  Nxf6 {[%clk 0:03:00]} 10. O-O {[%clk 0:02:59]}  Bd6 {[%clk 0:03:00]} 11. Nf3 {[%clk 0:02:58]}  Qc7 {[%clk 0:03:01]} 12. Bg5 {[%clk 0:02:56]}  O-O {[%clk 0:03:00]} 13. Bh4 {[%clk 0:02:52]}  Nh5 {[%clk 0:03:00]} 14. Qc2 {[%clk 0:02:51]}  h6 {[%clk 0:03:00]} 15. Bh7+ {[%clk 0:02:51]}  Kh8 {[%clk 0:03:00]} 16. Bg6 {[%clk 0:02:49]}  Rxf3 {[%clk 0:03:01]} 17. Bxh5 {[%clk 0:02:44]}  Rf5 {[%clk 0:03:01]} 18. Bg4 {[%clk 0:02:43]}  Bxh2+ {[%clk 0:03:01]} 19. Kh1 {[%clk 0:02:44]}  Bd6 {[%clk 0:03:01]} 20. Bxf5 {[%clk 0:02:43]}  exf5 {[%clk 0:03:02]} 21. f4 {[%clk 0:02:39]}  Qf7 {[%clk 0:02:55]} 22. Kg1 {[%clk 0:02:33]}  Qh5 {[%clk 0:02:47]} 23. Bf2 {[%clk 0:02:20]}  Bd7 {[%clk 0:02:36]} 24. Ng3 {[%clk 0:02:12]}  Qg4 {[%clk 0:02:26]} 25. Qe2 {[%clk 0:02:08]}  Qxf4 {[%clk 0:02:22]} 26. Rae1 {[%clk 0:01:57]}  Nxd4 {[%clk 0:02:14]} 27. Qh5 {[%clk 0:01:53]}  Nc6 {[%clk 0:01:48]} 28. Qg6 {[%clk 0:01:44]}  Rf8 {[%clk 0:01:09]} 29. Re3 {[%clk 0:01:36]}  Rf6 {[%clk 0:01:06]} 30. Qh5 {[%clk 0:01:36]}  Qg4 {[%clk 0:00:43]} 31. Qxg4 {[%clk 0:01:07]}  fxg4 {[%clk 0:00:44]} 32. Rfe1 {[%clk 0:01:07]}  d4 {[%clk 0:00:24]} 33. Re4 {[%clk 0:01:01]}  d3 {[%clk 0:00:22]} 34. Rd1 {[%clk 0:00:57]}  Nb4 {[%clk 0:00:16]} 35. a3 {[%clk 0:00:46]}  Nd5 {[%clk 0:00:12]} 36. Rxd3 {[%clk 0:00:40]}  Nf4 {[%clk 0:00:13]} 37. Rxf4 {[%clk 0:00:37]}  Bxf4 {[%clk 0:00:10]} 38. Rxd7 {[%clk 0:00:38]}  Rc6 {[%clk 0:00:08]} 39. Ne2 {[%clk 0:00:33]}  Be5 {[%clk 0:00:05]} 40. Bd4 {[%clk 0:00:30]}  Bxd4+ {[%clk 0:00:01]} 41. Nxd4 {[%clk 0:00:30]}  Rc1+ {[%clk 0:00:01]} 1-0


[Site "https://www.chess.com"]

[Event "Titled Tuesday Blitz June 13 Late 2023"]
[White "KorolDimitriy75"]
[Black "Florianovitz, Derlei Alex"]
[BlackFideId "2114178"]
[WhiteElo "2413"]
[BlackElo "1953"]
[Result "1-0"]
[Round "6"]
[TimeControl "180+2"]
[Date "2023.06.13"]
[WhiteClock "0:00:19"]
[BlackClock "0:02:03"]
[Board "140"]

1. d4 {[%clk 0:03:00]}  Nf6 {[%clk 0:02:59]} 2. c4 {[%clk 0:03:01]}  e6 {[%clk 0:02:59]} 3. Nc3 {[%clk 0:03:01]}  Bb4 {[%clk 0:02:59]} 4. Qc2 {[%clk 0:03:01]}  O-O {[%clk 0:02:59]} 5. e4 {[%clk 0:03:02]}  Bxc3+ {[%clk 0:02:58]} 6. bxc3 {[%clk 0:03:01]}  d5 {[%clk 0:02:58]} 7. cxd5 {[%clk 0:03:01]}  exd5 {[%clk 0:02:58]} 8. e5 {[%clk 0:03:01]}  Nfd7 {[%clk 0:02:58]} 9. Bd3 {[%clk 0:03:01]}  h6 {[%clk 0:02:58]} 10. Ne2 {[%clk 0:02:46]}  c5 {[%clk 0:02:58]} 11. O-O {[%clk 0:02:38]}  Nc6 {[%clk 0:02:58]} 12. Ba3 {[%clk 0:02:15]}  Re8 {[%clk 0:02:58]} 13. f4 {[%clk 0:02:09]}  cxd4 {[%clk 0:02:56]} 14. cxd4 {[%clk 0:02:08]}  Nf8 {[%clk 0:02:53]} 15. f5 {[%clk 0:02:01]}  Qa5 {[%clk 0:02:47]} 16. Bd6 {[%clk 0:01:31]}  Qb6 {[%clk 0:02:34]} 17. Bc5 {[%clk 0:01:21]}  Qd8 {[%clk 0:02:33]} 18. Rf4 {[%clk 0:01:02]}  f6 {[%clk 0:02:22]} 19. e6 {[%clk 0:00:47]}  Nh7 {[%clk 0:02:22]} 20. Ng3 {[%clk 0:00:31]}  Qc7 {[%clk 0:02:18]} 21. Raf1 {[%clk 0:00:29]}  b6 {[%clk 0:02:09]} 22. Ba3 {[%clk 0:00:22]}  Ba6 {[%clk 0:02:03]} 23. Bxa6 {[%clk 0:00:19]} 1-0


[Site "https://www.chess.com"]

[Event "Titled Tuesday Blitz June 13 Late 2023"]
[White "Druska, Juraj"]
[Black "Ouellet, Maili-Jade"]
[WhiteFideId "14915650"]
[BlackFideId "2620472"]
[WhiteElo "2415"]
[BlackElo "2077"]
[Result "1-0"]
[Round "6"]
[TimeControl "180+2"]
[Date "2023.06.13"]
[WhiteClock "0:00:11"]
[BlackClock "0:00:00"]
[Board "143"]

1. a3 {[%clk 0:03:00]}  a6 {[%clk 0:02:51]} 2. g3 {[%clk 0:02:59]}  g6 {[%clk 0:02:49]} 3. Bg2 {[%clk 0:02:59]}  Bg7 {[%clk 0:02:48]} 4. d4 {[%clk 0:02:56]}  d6 {[%clk 0:02:41]} 5. Nf3 {[%clk 0:02:54]}  Nf6 {[%clk 0:02:40]} 6. O-O {[%clk 0:02:54]}  O-O {[%clk 0:02:40]} 7. b3 {[%clk 0:02:51]}  c5 {[%clk 0:02:36]} 8. Bb2 {[%clk 0:02:51]}  cxd4 {[%clk 0:02:34]} 9. Nxd4 {[%clk 0:02:49]}  Qc7 {[%clk 0:02:34]} 10. c4 {[%clk 0:02:48]}  Nc6 {[%clk 0:02:34]} 11. Nc3 {[%clk 0:02:36]}  Nxd4 {[%clk 0:02:05]} 12. Qxd4 {[%clk 0:02:37]}  Be6 {[%clk 0:01:57]} 13. Qd3 {[%clk 0:01:59]}  Rab8 {[%clk 0:01:48]} 14. Rac1 {[%clk 0:01:58]}  Rfc8 {[%clk 0:01:44]} 15. Nd5 {[%clk 0:01:48]}  Bxd5 {[%clk 0:01:39]} 16. cxd5 {[%clk 0:01:49]}  Qd8 {[%clk 0:01:22]} 17. Bh3 {[%clk 0:01:32]}  Nd7 {[%clk 0:00:36]} 18. Bxg7 {[%clk 0:01:25]}  Kxg7 {[%clk 0:00:37]} 19. Rc3 {[%clk 0:01:10]}  Kg8 {[%clk 0:00:30]} 20. Rfc1 {[%clk 0:00:56]}  Rxc3 {[%clk 0:00:10]} 21. Qxc3 {[%clk 0:00:57]}  Nc5 {[%clk 0:00:07]} 22. Qe3 {[%clk 0:00:20]}  Qe8 {[%clk 0:00:02]} 23. b4 {[%clk 0:00:19]}  Nd7 {[%clk 0:00:02]} 24. Qd4 {[%clk 0:00:17]}  Nf6 {[%clk 0:00:02]} 25. e4 {[%clk 0:00:16]}  Qd8 {[%clk 0:00:02]} 26. Kg2 {[%clk 0:00:13]}  Nd7 {[%clk 0:00:02]} 27. Qa7 {[%clk 0:00:12]}  Rc8 {[%clk 0:00:01]} 28. Qe3 {[%clk 0:00:09]}  Rc7 {[%clk 0:00:02]} 29. Rxc7 {[%clk 0:00:07]}  Qxc7 {[%clk 0:00:03]} 30. Bxd7 {[%clk 0:00:07]}  Qxd7 {[%clk 0:00:03]} 31. Qb6 {[%clk 0:00:08]}  Qc8 {[%clk 0:00:03]} 32. h4 {[%clk 0:00:07]}  Kf8 {[%clk 0:00:03]} 33. h5 {[%clk 0:00:07]}  Kg7 {[%clk 0:00:03]} 34. Qd4+ {[%clk 0:00:07]}  Kg8 {[%clk 0:00:03]} 35. h6 {[%clk 0:00:07]}  f6 {[%clk 0:00:04]} 36. Qb6 {[%clk 0:00:08]}  Kf7 {[%clk 0:00:04]} 37. Kh2 {[%clk 0:00:07]}  Qd7 {[%clk 0:00:04]} 38. Qa7 {[%clk 0:00:07]}  Qc8 {[%clk 0:00:04]} 39. Kg2 {[%clk 0:00:07]}  Qc7 {[%clk 0:00:04]} 40. Qa8 {[%clk 0:00:08]}  e6 {[%clk 0:00:02]} 41. Qh8 {[%clk 0:00:08]}  Qc2 {[%clk 0:00:02]} 42. Qxh7+ {[%clk 0:00:08]}  Ke8 {[%clk 0:00:02]} 43. Qg8+ {[%clk 0:00:08]}  Ke7 {[%clk 0:00:01]} 44. Qxe6+ {[%clk 0:00:09]}  Kd8 {[%clk 0:00:01]} 45. Qxd6+ {[%clk 0:00:10]}  Kc8 {[%clk 0:00:02]} 46. Qe6+ {[%clk 0:00:10]}  Kb8 {[%clk 0:00:00]} 47. h7 {[%clk 0:00:11]} 1-0


[Site "https://www.chess.com"]

[Event "Titled Tuesday Blitz June 13 Late 2023"]
[White "Sadovsky, Artem"]
[Black "Zhukov, Maksim"]
[WhiteFideId "4155840"]
[BlackFideId "34181790"]
[WhiteElo "2314"]
[BlackElo "1925"]
[Result "1-0"]
[Round "6"]
[TimeControl "180+2"]
[Date "2023.06.13"]
[WhiteClock "0:00:19"]
[BlackClock "0:00:05"]
[Board "144"]

1. Nf3 {[%clk 0:03:00]}  c5 {[%clk 0:03:00]} 2. e3 {[%clk 0:02:57]}  d6 {[%clk 0:03:00]} 3. d4 {[%clk 0:02:54]}  cxd4 {[%clk 0:03:00]} 4. exd4 {[%clk 0:02:53]}  Nf6 {[%clk 0:03:01]} 5. Bd3 {[%clk 0:02:52]}  a6 {[%clk 0:03:00]} 6. O-O {[%clk 0:02:53]}  b5 {[%clk 0:02:58]} 7. Re1 {[%clk 0:02:52]}  Bb7 {[%clk 0:02:57]} 8. Bg5 {[%clk 0:02:51]}  Nbd7 {[%clk 0:02:57]} 9. Nbd2 {[%clk 0:02:35]}  Qb6 {[%clk 0:02:53]} 10. a4 {[%clk 0:01:58]}  h6 {[%clk 0:02:27]} 11. Bh4 {[%clk 0:01:52]}  g5 {[%clk 0:02:26]} 12. Bg3 {[%clk 0:01:52]}  Bg7 {[%clk 0:02:22]} 13. axb5 {[%clk 0:01:51]}  axb5 {[%clk 0:02:22]} 14. Rxa8+ {[%clk 0:01:49]}  Bxa8 {[%clk 0:02:23]} 15. Qe2 {[%clk 0:01:46]}  e6 {[%clk 0:02:16]} 16. Bxb5 {[%clk 0:01:36]}  O-O {[%clk 0:02:14]} 17. Bxd7 {[%clk 0:01:31]}  Nxd7 {[%clk 0:02:14]} 18. Nc4 {[%clk 0:01:32]}  Qa6 {[%clk 0:01:58]} 19. Nxd6 {[%clk 0:01:23]}  Qxe2 {[%clk 0:01:56]} 20. Rxe2 {[%clk 0:01:24]}  Bxf3 {[%clk 0:01:56]} 21. gxf3 {[%clk 0:01:25]}  Bxd4 {[%clk 0:01:57]} 22. c3 {[%clk 0:01:21]}  Bg7 {[%clk 0:01:55]} 23. f4 {[%clk 0:01:11]}  gxf4 {[%clk 0:01:47]} 24. Bxf4 {[%clk 0:01:12]}  Ra8 {[%clk 0:01:46]} 25. Nc4 {[%clk 0:01:03]}  Ra4 {[%clk 0:01:36]} 26. Ne5 {[%clk 0:00:54]}  Nb6 {[%clk 0:01:22]} 27. Bg3 {[%clk 0:00:49]}  Nd5 {[%clk 0:01:13]} 28. Kg2 {[%clk 0:00:35]}  Ra2 {[%clk 0:01:10]} 29. Kf3 {[%clk 0:00:32]}  h5 {[%clk 0:01:05]} 30. c4 {[%clk 0:00:31]}  Nb4 {[%clk 0:01:00]} 31. b3 {[%clk 0:00:31]}  Ra3 {[%clk 0:00:56]} 32. Re3 {[%clk 0:00:28]}  Nc2 {[%clk 0:00:55]} 33. Rc3 {[%clk 0:00:27]}  Rxb3 {[%clk 0:00:46]} 34. Rxb3 {[%clk 0:00:28]}  Nd4+ {[%clk 0:00:46]} 35. Ke3 {[%clk 0:00:29]}  Nxb3 {[%clk 0:00:47]} 36. Nd3 {[%clk 0:00:30]}  Bd4+ {[%clk 0:00:44]} 37. Ke4 {[%clk 0:00:29]}  f5+ {[%clk 0:00:43]} 38. Kf4 {[%clk 0:00:24]}  Nd2 {[%clk 0:00:32]} 39. c5 {[%clk 0:00:24]}  Nb3 {[%clk 0:00:23]} 40. c6 {[%clk 0:00:23]}  Bb6 {[%clk 0:00:23]} 41. Kg5 {[%clk 0:00:23]}  Bd8+ {[%clk 0:00:19]} 42. Kxh5 {[%clk 0:00:23]}  Nd4 {[%clk 0:00:11]} 43. c7 {[%clk 0:00:23]}  Bxc7 {[%clk 0:00:11]} 44. Bxc7 {[%clk 0:00:23]}  Kf7 {[%clk 0:00:12]} 45. Be5 {[%clk 0:00:23]}  Nf3 {[%clk 0:00:12]} 46. h4 {[%clk 0:00:23]}  Nd2 {[%clk 0:00:11]} 47. Bf4 {[%clk 0:00:23]}  Ne4 {[%clk 0:00:09]} 48. Ne5+ {[%clk 0:00:24]}  Kf6 {[%clk 0:00:09]} 49. f3 {[%clk 0:00:22]}  Nf2 {[%clk 0:00:08]} 50. Nd7+ {[%clk 0:00:20]}  Ke7 {[%clk 0:00:08]} 51. Ne5 {[%clk 0:00:20]}  Kf6 {[%clk 0:00:09]} 52. Ng6 {[%clk 0:00:18]}  Nh3 {[%clk 0:00:07]} 53. Be5+ {[%clk 0:00:18]}  Kf7 {[%clk 0:00:07]} 54. Kh6 {[%clk 0:00:18]}  Ng1 {[%clk 0:00:06]} 55. Bf4 {[%clk 0:00:16]}  Nxf3 {[%clk 0:00:06]} 56. Ne5+ {[%clk 0:00:16]}  Nxe5 {[%clk 0:00:06]} 57. Bxe5 {[%clk 0:00:17]}  Kg8 {[%clk 0:00:06]} 58. Kg6 {[%clk 0:00:17]}  f4 {[%clk 0:00:06]} 59. h5 {[%clk 0:00:18]}  f3 {[%clk 0:00:06]} 60. h6 {[%clk 0:00:19]}  f2 {[%clk 0:00:06]} 61. Bf6 {[%clk 0:00:18]}  Kf8 {[%clk 0:00:07]} 62. h7 {[%clk 0:00:18]}  f1=Q {[%clk 0:00:05]} 63. h8=Q# {[%clk 0:00:19]} 1-0


[Site "https://www.chess.com"]

[Event "Titled Tuesday Blitz June 13 Late 2023"]
[White "Jimenez Garcia, Emmanuel"]
[Black "Rodriguez Santiago, Jaime"]
[WhiteFideId "6504779"]
[BlackFideId "3100898"]
[WhiteElo "2440"]
[BlackElo "2025"]
[Result "1-0"]
[Round "6"]
[TimeControl "180+2"]
[Date "2023.06.13"]
[WhiteClock "0:01:29"]
[BlackClock "0:00:05"]
[Board "147"]

1. Nf3 {[%clk 0:03:00]}  Nf6 {[%clk 0:02:57]} 2. c4 {[%clk 0:03:01]}  e6 {[%clk 0:02:56]} 3. b3 {[%clk 0:03:01]}  d5 {[%clk 0:02:55]} 4. Bb2 {[%clk 0:03:02]}  c5 {[%clk 0:02:54]} 5. cxd5 {[%clk 0:03:01]}  exd5 {[%clk 0:02:54]} 6. g3 {[%clk 0:03:01]}  Be7 {[%clk 0:02:52]} 7. Bg2 {[%clk 0:03:01]}  O-O {[%clk 0:02:52]} 8. O-O {[%clk 0:03:01]}  Nc6 {[%clk 0:02:50]} 9. d4 {[%clk 0:03:01]}  b6 {[%clk 0:02:43]} 10. Nc3 {[%clk 0:02:58]}  Bb7 {[%clk 0:02:36]} 11. Rc1 {[%clk 0:02:57]}  Rc8 {[%clk 0:02:34]} 12. e3 {[%clk 0:02:54]}  cxd4 {[%clk 0:02:27]} 13. Nxd4 {[%clk 0:02:53]}  Nxd4 {[%clk 0:02:24]} 14. Qxd4 {[%clk 0:02:54]}  Bc5 {[%clk 0:02:23]} 15. Qa4 {[%clk 0:02:53]}  a6 {[%clk 0:02:16]} 16. Rfd1 {[%clk 0:02:52]}  b5 {[%clk 0:02:12]} 17. Qh4 {[%clk 0:02:50]}  Be7 {[%clk 0:01:47]} 18. Qf4 {[%clk 0:02:37]}  Qb6 {[%clk 0:01:17]} 19. g4 {[%clk 0:02:30]}  Bd6 {[%clk 0:01:08]} 20. Qf5 {[%clk 0:02:24]}  g6 {[%clk 0:01:01]} 21. Qg5 {[%clk 0:02:19]}  Be7 {[%clk 0:00:47]} 22. h3 {[%clk 0:02:13]}  Qe6 {[%clk 0:00:46]} 23. Qh6 {[%clk 0:02:09]}  Rfe8 {[%clk 0:00:44]} 24. g5 {[%clk 0:01:57]}  Bf8 {[%clk 0:00:39]} 25. Qh4 {[%clk 0:01:55]}  Ne4 {[%clk 0:00:38]} 26. Nxe4 {[%clk 0:01:54]}  dxe4 {[%clk 0:00:37]} 27. Qf4 {[%clk 0:01:45]}  Rxc1 {[%clk 0:00:36]} 28. Bxc1 {[%clk 0:01:39]}  Rc8 {[%clk 0:00:32]} 29. Bb2 {[%clk 0:01:38]}  Bg7 {[%clk 0:00:28]} 30. Rd6 {[%clk 0:01:35]}  Qe7 {[%clk 0:00:25]} 31. Bxg7 {[%clk 0:01:32]}  Kxg7 {[%clk 0:00:25]} 32. h4 {[%clk 0:01:33]}  Rc2 {[%clk 0:00:24]} 33. Bh3 {[%clk 0:01:32]}  Rc6 {[%clk 0:00:12]} 34. Rd7 {[%clk 0:01:30]}  Rc1+ {[%clk 0:00:08]} 35. Kg2 {[%clk 0:01:30]}  Qe8 {[%clk 0:00:05]} 36. Qf6+ {[%clk 0:01:29]} 1-0


[Site "https://www.chess.com"]

[Event "Titled Tuesday Blitz June 13 Late 2023"]
[White "Mazurkiewicz, Michal"]
[Black "Celestino, Rafael Teixeira"]
[WhiteFideId "1124943"]
[BlackFideId "2108925"]
[WhiteElo "2063"]
[BlackElo "2263"]
[Result "1-0"]
[Round "6"]
[TimeControl "180+2"]
[Date "2023.06.13"]
[WhiteClock "0:00:33"]
[BlackClock "0:00:16"]
[Board "149"]

1. e4 {[%clk 0:03:00]}  e5 {[%clk 0:02:59]} 2. Nf3 {[%clk 0:03:00]}  Nc6 {[%clk 0:03:00]} 3. Bb5 {[%clk 0:03:00]}  a6 {[%clk 0:02:57]} 4. Bxc6 {[%clk 0:03:00]}  dxc6 {[%clk 0:02:57]} 5. O-O {[%clk 0:03:01]}  Bd6 {[%clk 0:02:55]} 6. d4 {[%clk 0:03:00]}  Bg4 {[%clk 0:02:41]} 7. dxe5 {[%clk 0:03:00]}  Bxf3 {[%clk 0:02:41]} 8. Qxf3 {[%clk 0:03:01]}  Bxe5 {[%clk 0:02:41]} 9. Qb3 {[%clk 0:02:59]}  Qh4 {[%clk 0:02:13]} 10. g3 {[%clk 0:02:49]}  Qxe4 {[%clk 0:02:11]} 11. Qxb7 {[%clk 0:02:39]}  Rd8 {[%clk 0:02:08]} 12. Nd2 {[%clk 0:02:32]}  Qd5 {[%clk 0:01:53]} 13. c4 {[%clk 0:02:29]}  Qe6 {[%clk 0:01:42]} 14. Re1 {[%clk 0:02:24]}  Ne7 {[%clk 0:01:40]} 15. Nf3 {[%clk 0:02:20]}  f6 {[%clk 0:01:38]} 16. Nxe5 {[%clk 0:02:02]}  fxe5 {[%clk 0:01:39]} 17. Qxc7 {[%clk 0:02:02]}  O-O {[%clk 0:01:33]} 18. Bg5 {[%clk 0:01:56]}  Rd7 {[%clk 0:01:22]} 19. Qxe5 {[%clk 0:01:54]}  Qf7 {[%clk 0:01:03]} 20. Qe6 {[%clk 0:01:39]}  Qxe6 {[%clk 0:00:44]} 21. Rxe6 {[%clk 0:01:40]}  Nf5 {[%clk 0:00:45]} 22. Rxc6 {[%clk 0:00:50]}  Nd4 {[%clk 0:00:43]} 23. Rc5 {[%clk 0:00:50]}  Nf3+ {[%clk 0:00:37]} 24. Kg2 {[%clk 0:00:49]}  h6 {[%clk 0:00:34]} 25. Be3 {[%clk 0:00:48]}  g5 {[%clk 0:00:32]} 26. h3 {[%clk 0:00:47]}  Rb7 {[%clk 0:00:29]} 27. b3 {[%clk 0:00:47]}  Rd7 {[%clk 0:00:30]} 28. Rd5 {[%clk 0:00:46]}  Re7 {[%clk 0:00:29]} 29. Rad1 {[%clk 0:00:46]}  Ref7 {[%clk 0:00:27]} 30. Rd6 {[%clk 0:00:44]}  Kh7 {[%clk 0:00:26]} 31. Rxa6 {[%clk 0:00:44]}  Ne5 {[%clk 0:00:24]} 32. Rdd6 {[%clk 0:00:42]}  g4 {[%clk 0:00:23]} 33. Rxh6+ {[%clk 0:00:41]}  Kg8 {[%clk 0:00:22]} 34. hxg4 {[%clk 0:00:41]}  Rg7 {[%clk 0:00:21]} 35. g5 {[%clk 0:00:40]}  Rd8 {[%clk 0:00:18]} 36. Rad6 {[%clk 0:00:37]}  Ra8 {[%clk 0:00:18]} 37. Bd4 {[%clk 0:00:38]}  Re8 {[%clk 0:00:18]} 38. Rde6 {[%clk 0:00:37]}  Rxe6 {[%clk 0:00:16]} 39. Rxe6 {[%clk 0:00:38]}  Nf7 {[%clk 0:00:16]} 40. g6 {[%clk 0:00:33]}  Nd8 {[%clk 0:00:16]} 41. Re8# {[%clk 0:00:33]} 1-0


[Site "https://www.chess.com"]

[Event "Titled Tuesday Blitz June 13 Late 2023"]
[White "Quirke, Jeffrey"]
[Black "Ochkoos, Jura"]
[WhiteFideId "2013029"]
[BlackFideId "2601214"]
[WhiteElo "2224"]
[BlackElo "2139"]
[Result "1/2-1/2"]
[Round "6"]
[TimeControl "180+2"]
[Date "2023.06.13"]
[WhiteClock "0:00:47"]
[BlackClock "0:00:53"]
[Board "150"]

1. e4 {[%clk 0:03:00]}  e5 {[%clk 0:02:59]} 2. d4 {[%clk 0:03:00]}  Nc6 {[%clk 0:03:00]} 3. d5 {[%clk 0:02:58]}  Nce7 {[%clk 0:03:00]} 4. h4 {[%clk 0:02:48]}  d6 {[%clk 0:02:56]} 5. h5 {[%clk 0:02:47]}  f5 {[%clk 0:02:52]} 6. Nc3 {[%clk 0:02:31]}  Nf6 {[%clk 0:02:50]} 7. Nge2 {[%clk 0:02:06]}  a6 {[%clk 0:02:32]} 8. Bg5 {[%clk 0:01:52]}  b5 {[%clk 0:02:26]} 9. Bxf6 {[%clk 0:01:51]}  gxf6 {[%clk 0:02:26]} 10. h6 {[%clk 0:01:43]}  f4 {[%clk 0:02:14]} 11. g3 {[%clk 0:01:36]}  f3 {[%clk 0:01:53]} 12. Ng1 {[%clk 0:01:35]}  Bg4 {[%clk 0:01:44]} 13. Nxf3 {[%clk 0:01:33]}  Qd7 {[%clk 0:01:37]} 14. a3 {[%clk 0:01:28]}  Rg8 {[%clk 0:01:36]} 15. Be2 {[%clk 0:01:28]}  Rg6 {[%clk 0:01:31]} 16. Qd2 {[%clk 0:01:25]}  Ng8 {[%clk 0:01:24]} 17. O-O-O {[%clk 0:01:16]}  Bxh6 {[%clk 0:01:21]} 18. Rxh6 {[%clk 0:01:09]}  Rxh6 {[%clk 0:01:20]} 19. Nh4 {[%clk 0:00:54]}  Bxe2 {[%clk 0:01:16]} 20. Qxe2 {[%clk 0:00:55]}  Ne7 {[%clk 0:01:12]} 21. Qe3 {[%clk 0:00:53]}  Rh5 {[%clk 0:01:05]} 22. Qf3 {[%clk 0:00:47]}  Rh6 {[%clk 0:01:03]} 23. Qe3 {[%clk 0:00:47]}  Rh5 {[%clk 0:00:56]} 24. Qf3 {[%clk 0:00:47]}  Rh6 {[%clk 0:00:53]} 25. Qe3 {[%clk 0:00:47]} 1/2-1/2


[Site "https://www.chess.com"]